bitfinex/quotes_ETHUSD_20250223
["timestamp","ask_amount","ask_price","bid_price","bid_amount"]
[1740348251932,1.29846518,2809.5,2809.3,3.55954]
[1740348252721,1.29846518,2809.5,2809.2,0.55]
[1740348253644,1.29846518,2809.5,2809.3,3.5596]
[1740348255346,1.29846518,2809.5,2809.2,0.55]
[1740348255531,1.29846518,2809.5,2809.2,4.10971]
[1740348255919,0.48576852,2809.4,2809.1,3.55978]
[1740348256119,0.48576852,2809.4,2809.1,3.55974]
[1740348256318,1.29846518,2809.5,2809.2,3.55973]
[1740348260334,1.29846518,2809.5,2809.2,7.11937]
[1740348260651,1.29846518,2809.5,2809.2,3.55964]
[1740348261868,0.8108,2809.4,2808.6,2.15998735]
[1740348262031,0.8108,2809.1,2808.7,3.56036]
[1740348262231,0.8108,2809.1,2808.9,3.56005]
[1740348262415,0.8108,2809.1,2808.8,4.11015]
[1740348263358,0.8108,2809.1,2808.8,0.55]
[1740348264967,3.56001,2809.0,2808.1,3.56106]
[1740348265115,3.56001,2809.0,2808.5,3.56059]
[1740348265116,0.8108,2808.9,2808.5,3.56059]
[1740348265319,1.51433836,2808.9,2808.7,3.5603]
[1740348266332,0.70353836,2808.9,2808.7,3.5603]
[1740348266522,0.70353836,2808.9,2808.7,3.56027]
[1740348267236,0.70353836,2808.9,2808.8,4.11023]
[1740348268464,0.70353836,2808.9,2808.8,0.55]
[1740348268842,0.70353836,2808.9,2808.8,4.11023]
[1740348271862,0.70353836,2808.9,2808.8,0.55]
[1740348272528,0.70353836,2808.9,2808.8,4.11023]
[1740348276553,0.70353836,2808.9,2808.8,0.55]
[1740348282881,0.70353836,2808.9,2808.8,4.11023]
[1740348290902,0.70353836,2808.9,2808.8,3.56023]
[1740348292503,0.70353836,2808.9,2808.8,3.67166673]
[1740348301004,1.48113836,2808.9,2808.8,0.11143673]
[1740348301529,1.9852612,2808.9,2808.8,0.11143673]
[1740348301876,5.5453712,2808.9,2808.8,0.11143673]
[1740348302317,1.9852612,2808.9,2808.8,0.11143673]
[1740348302621,5.5453712,2808.9,2808.8,0.11143673]
[1740348302838,5.5453712,2808.9,2808.5,3.56054]
[1740348303014,0.55453712,2808.8,2808.5,3.56054]
[1740348303988,0.55453712,2808.8,2808.6,0.11144434]
[1740348305729,5.80453712,2808.8,2808.2,1.3219]
[1740348305892,0.8099,2808.5,2808.1,3.56101]
[1740348306087,4.37057,2808.5,2808.0,3.56124]
[1740348306292,3.56075,2808.4,2808.0,3.56124]
[1740348307131,3.56075,2808.4,2808.1,0.11146027]
[1740348307433,4.37057,2808.5,2808.1,0.11146027]
[1740348307631,0.793111,2808.4,2808.1,0.11146027]
[1740348308131,0.793111,2808.4,2808.1,3.67258027]
[1740348308502,0.793111,2808.4,2808.2,0.11146027]
[1740348309294,3.56078,2808.4,2808.2,0.11146027]
[1740348309692,4.33757,2808.3,2808.2,0.11146027]
[1740348310238,3.56102,2808.2,2808.0,0.11146027]
[1740348310436,3.56112,2808.1,2808.0,0.11146027]
[1740348310616,4.33782,2808.1,2808.0,0.11146027]
[1740348310937,5.296602,2808.1,2808.0,0.11146027]
[1740348311498,5.296602,2808.1,2807.4,3.56198]
[1740348311695,0.7767,2807.9,2807.5,3.56188]
[1740348316074,0.7767,2807.9,2807.5,3.56181]
[1740348317472,0.71978938,2807.6,2807.5,3.56181]
[1740348334304,0.71978938,2807.6,2807.5,4.11181]
[1740348334469,6.0554,2808.4,2808.3,3.56087]
[1740348334668,8.003,2809.2,2807.9,0.7753]
[1740348334669,0.8054,2808.6,2808.5,3.56053]
[1740348334869,5.25,2808.9,2808.7,3.56034]
[1740348335185,5.99236874,2808.9,2808.8,3.56023]
[1740348335502,6.69409683,2808.9,2808.8,3.56023]
[1740348335702,6.69409683,2808.9,2808.7,3.56034]
[1740348335885,6.69409683,2808.9,2808.7,3.56029]
[1740348336089,6.69409683,2808.9,2808.8,3.56023]
[1740348339962,5.95172809,2808.9,2808.8,3.56023]
[1740348340462,0.70172809,2808.9,2808.8,3.56023]
[1740348360542,0.70172809,2808.9,2808.8,4.11023]
[1740348360679,5.25,2809.2,2809.1,3.55985]
[1740348361019,0.8028,2809.5,2809.2,3.55964]
[1740348361193,1.92490974,2809.5,2809.2,3.55964]
[1740348362478,1.92490974,2809.5,2809.0,3.55989]
[1740348362679,0.8137,2809.1,2808.4,3.8292]
[1740348362923,1.34628735,2809.0,2808.8,3.56023]
[1740348363226,1.91826609,2809.0,2808.6,3.56045]
[1740348363596,1.91826609,2809.0,2808.6,0.55]
[1740348363919,1.91826609,2809.0,2808.7,3.56035]
[1740348364228,1.91826609,2809.0,2808.6,4.11045]
[1740348364516,1.91826609,2809.0,2808.6,0.55]
[1740348364820,0.62918361,2808.9,2808.6,0.55]
[1740348364980,0.62918361,2808.9,2808.6,4.11047]
[1740348365182,0.62918361,2808.9,2808.7,0.11143291]
[1740348365604,5.72021735,2808.8,2808.7,0.11143291]
[1740348366426,6.59628735,2808.8,2808.2,0.11143291]
[1740348366727,4.37457,2808.3,2808.2,0.11143291]
[1740348366898,9.62457,2808.3,2808.2,0.11143291]
[1740348367282,3.56115,2808.1,2807.6,0.55]
[1740348367482,3.56115,2808.1,2807.6,4.11175]
[1740348367847,3.56115,2808.1,2807.8,0.11147596]
[1740348368787,3.56115,2808.1,2807.7,0.11147596]
[1740348370230,3.56133,2808.0,2807.6,0.55]
[1740348370520,0.7614,2807.9,2807.6,0.55]
[1740348370827,4.32282,2807.9,2807.4,4.3912]
[1740348370981,3.56152,2807.8,2807.3,3.56205]
[1740348371316,3.56152,2807.8,2807.4,0.55]
[1740348371509,3.56152,2807.8,2807.2,0.8282]
[1740348371726,3.56185,2807.6,2807.1,3.56233]
[1740348371926,3.56185,2807.6,2807.2,0.55]
[1740348373018,4.26780201,2807.6,2807.2,0.55]
[1740348374529,3.56188,2807.5,2807.2,0.55]
[1740348375648,3.56108,2807.5,2807.2,0.55]
[1740348375813,3.56108,2807.5,2807.0,0.8282]
[1740348376014,3.56221,2807.3,2806.8,3.56271]
[1740348376345,3.56221,2807.3,2806.9,0.55]
[1740348376551,0.8219,2807.4,2806.7,4.347]
[1740348376552,3.56227,2807.2,2806.7,4.347]
[1740348376698,4.38395,2807.4,2806.7,1.575194]
[1740348376699,3.5624,2807.1,2806.7,1.575194]
[1740348376901,3.56233,2807.2,2806.7,1.575194]
[1740348377144,3.56233,2807.2,2806.8,0.55]
[1740348377943,0.8219,2807.4,2806.8,0.55]
[1740348378241,0.8219,2807.4,2806.9,3.56258]
[1740348378447,3.56215,2807.3,2806.9,3.56258]
[1740348378600,7.12438,2807.3,2806.8,4.11275]
[1740348378806,3.56245,2807.1,2806.6,3.56302]
[1740348379008,4.38447,2807.0,2806.6,1.091027]
[1740348379246,4.38447,2807.0,2806.7,0.55]
[1740348379844,3.56266,2806.9,2806.6,0.55]
[1740348380048,3.56279,2806.8,2806.3,0.7842]
[1740348380202,3.56279,2806.8,2806.3,4.782362]
[1740348380402,3.56278,2806.8,2806.4,3.56327]
[1740348380601,7.1254,2806.9,2806.5,0.55]
[1740348380844,3.56266,2806.9,2806.5,0.55]
[1740348381644,3.56266,2806.9,2806.5,0.548822]
[1740348382947,0.72744011,2806.8,2806.5,0.548822]
[1740348383314,4.29023011,2806.8,2806.5,0.548822]
[1740348384914,4.29023011,2806.8,2806.3,4.218972]
[1740348385353,4.29023011,2806.8,2806.4,0.55]
[1740348386252,4.29023011,2806.8,2806.4,4.11326]
[1740348387209,4.29023011,2806.8,2806.4,0.55]
[1740348388051,3.56337,2806.4,2805.9,0.7957]
[1740348388357,3.56337,2806.4,2805.9,4.3596]
[1740348388652,3.56337,2806.4,2806.0,0.55]
[1740348388835,3.56318,2806.5,2806.0,4.11378]
[1740348389035,3.56344,2806.3,2805.9,0.7957]
[1740348389243,3.56372,2806.1,2805.7,0.7681]
[1740348389439,3.56372,2806.1,2805.3,2.77966367]
[1740348389440,0.7549,2806.2,2805.1,0.7681]
[1740348389739,3.5638,2806.0,2805.6,0.55]
[1740348389942,3.56367,2806.1,2805.5,3.56436]
[1740348390269,3.56367,2806.1,2805.6,0.55]
[1740348390473,3.56367,2806.1,2805.6,4.11427]
[1740348390683,4.27200987,2806.1,2805.6,4.11427]
[1740348391573,3.56408,2805.8,2805.3,3.56461]
[1740348391873,0.8065,2805.3,2804.4,0.7817]
[1740348392030,3.5648,2805.2,2804.5,3.56557]
[1740348392229,3.56527,2804.9,2804.4,0.7817]
[1740348392538,3.56537,2804.8,2804.4,0.11158849]
[1740348392737,3.56506,2805.0,2804.5,4.1156]
[1740348392941,5.25,2805.3,2804.8,0.7817]
[1740348393137,5.25,2805.3,2804.9,3.56512]
[1740348393326,5.25,2805.3,2804.8,0.7817]
[1740348393526,5.25,2805.3,2805.2,3.5648]
[1740348393722,0.8065,2805.4,2805.2,3.5648]
[1740348393950,0.253,2805.5,2805.2,7.12953]
[1740348394444,0.70555563,2805.4,2805.2,7.12946]
[1740348394647,0.70555563,2805.4,2805.3,3.56468]
[1740348395228,0.70555563,2805.4,2805.1,7.12978]
[1740348395526,0.70555563,2805.4,2805.1,7.1297]
[1740348396350,0.70555563,2805.4,2805.2,3.56471]
[1740348396552,0.70555563,2805.4,2804.9,4.11508]
[1740348396760,0.70555563,2805.4,2805.1,3.56487]
[1740348397548,0.70555563,2805.4,2805.1,7.1297]
[1740348398095,0.70555563,2805.4,2805.2,3.5648]
[1740348399485,0.70555563,2805.4,2805.0,3.56503]
[1740348399693,0.70555563,2805.4,2805.0,3.56494]
[1740348400489,0.70555563,2805.4,2805.0,7.12993]
[1740348400787,0.70555563,2805.4,2805.0,3.56494]
[1740348401440,4.27011563,2805.4,2805.0,3.56494]
[1740348401781,5.15658119,2805.4,2805.0,3.56494]
[1740348402078,5.15658119,2805.4,2804.9,4.11518]
[1740348402475,5.15658119,2805.4,2804.9,3.56518]
[1740348402677,6.84202119,2805.4,2804.9,3.56509]
[1740348402852,6.84202119,2805.4,2805.0,3.56498]
[1740348403057,6.84202119,2805.4,2805.0,3.56506]
[1740348403240,6.84202119,2805.4,2804.9,3.56509]
[1740348403587,6.84202119,2805.4,2805.0,3.56495]
[1740348404374,6.84202119,2805.4,2805.1,3.56487]
[1740348404577,6.84202119,2805.4,2805.0,3.56495]
[1740348405076,6.84202119,2805.4,2805.1,3.56481]
[1740348406455,6.84202119,2805.4,2805.0,7.12994]
[1740348406955,6.84202119,2805.4,2805.0,7.12995]
[1740348407357,6.84202119,2805.4,2805.0,3.56495]
[1740348407741,6.84202119,2805.4,2805.0,7.12995]
[1740348408078,6.84202119,2805.4,2805.0,3.56495]
[1740348408380,6.84202119,2805.4,2805.0,7.12993]
[1740348408769,1.84304712,2805.3,2805.0,3.56495]
[1740348410100,1.84304712,2805.3,2804.8,3.56523]
[1740348410241,5.40772712,2805.3,2804.7,3.56538]
[1740348410446,0.8243,2805.1,2804.7,3.56538]
[1740348410748,1.72628271,2805.1,2804.7,3.56538]
[1740348411280,1.72628271,2805.1,2804.8,3.5652]
[1740348411472,0.8243,2805.1,2805.0,3.56506]
[1740348411873,0.8243,2805.1,2804.9,3.56517]
[1740348411874,0.8243,2805.1,2804.9,3.56518]
[1740348412464,0.8243,2805.1,2804.9,7.13029]
[1740348412687,0.8243,2805.1,2804.9,3.56511]
[1740348412877,0.8243,2805.1,2805.0,3.56506]
[1740348413064,0.8243,2805.1,2804.9,7.13023]
[1740348413885,0.8243,2805.1,2804.9,3.56511]
[1740348414261,0.8243,2805.1,2805.0,3.56506]
[1740348416889,0.8243,2805.1,2804.8,3.56524]
[1740348417055,0.8243,2805.1,2804.9,3.56517]
[1740348418194,0.8243,2805.1,2804.8,3.56524]
[1740348418488,0.8243,2805.1,2804.8,3.56523]
[1740348418705,0.8243,2805.1,2804.9,3.56517]
[1740348419694,0.8243,2805.1,2805.0,3.56506]
[1740348419861,0.8243,2805.1,2804.9,3.56517]
[1740348420067,0.8243,2805.1,2804.9,7.13021]
[1740348420266,0.8243,2805.1,2804.9,3.5651]
[1740348420473,0.8243,2805.1,2805.0,3.56506]
[1740348420678,0.8243,2805.1,2804.9,3.5651]
[1740348420879,0.8243,2805.1,2805.0,3.56506]
[1740348422110,0.8243,2805.1,2805.0,0.11158893]
[1740348423306,0.8243,2805.1,2804.9,3.5651]
[1740348423483,0.8243,2805.1,2804.9,7.1302]
[1740348423686,0.8243,2805.1,2804.9,3.5651]
[1740348423881,0.8243,2805.1,2804.9,7.13023]
[1740348424413,0.8243,2805.1,2804.9,3.5651]
[1740348424574,0.8243,2805.1,2804.9,7.13022]
[1740348425993,0.8243,2805.1,2805.0,3.56506]
[1740348426197,0.8243,2805.1,2804.8,3.56525]
[1740348426386,0.8243,2805.1,2804.8,7.13049]
[1740348426886,0.8243,2805.1,2804.9,3.56515]
[1740348427614,0.8243,2805.1,2805.0,3.56506]
[1740348430817,0.8243,2805.1,2804.9,3.56515]
[1740348430818,0.8243,2805.1,2804.3,0.7612]
[1740348431028,0.7989,2804.9,2804.4,3.56575]
[1740348431223,0.7989,2804.9,2804.3,3.56589]
[1740348431380,2.116805,2804.9,2804.5,3.56568]
[1740348431580,2.116805,2804.9,2804.5,3.67727812]
[1740348431982,5.682095,2804.9,2804.5,0.11159812]
[1740348432212,0.7765,2804.7,2804.5,0.11159812]
[1740348433020,0.7765,2804.7,2804.4,3.56576]
[1740348433829,1.8674665,2804.7,2804.2,3.7182504]
[1740348434049,5.4330165,2804.7,2804.2,3.7182504]
[1740348434348,0.70800568,2804.6,2804.4,3.56581]
[1740348434680,0.70800568,2804.6,2804.3,0.11160731]
[1740348435570,5.95800568,2804.6,2804.3,0.11160731]
[1740348435772,11.04550392,2804.6,2804.2,0.1522604]
[1740348436305,7.47991392,2804.6,2804.2,3.7182604]
[1740348436552,7.47991392,2804.6,2804.4,3.56576]
[1740348436707,5.95800568,2804.6,2804.4,3.56576]
[1740348437208,5.95800568,2804.6,2804.2,7.2843504]
[1740348437409,5.95800568,2804.6,2804.2,3.7182804]
[1740348437750,5.95800568,2804.6,2804.2,7.2842704]
[1740348438047,5.95800568,2804.6,2804.2,3.7182504]
[1740348438253,7.01426627,2804.6,2804.2,7.2842604]
[1740348439260,7.01426627,2804.6,2804.3,3.56592]
[1740348441755,7.01426627,2804.6,2804.2,3.7182504]
[1740348442047,7.01426627,2804.6,2804.2,7.2842404]
[1740348442447,7.01426627,2804.6,2804.2,3.7182504]
[1740348442942,7.01426627,2804.6,2804.3,3.56594]
[1740348443322,7.01426627,2804.6,2804.2,3.7182804]
[1740348443759,7.01426627,2804.6,2804.3,3.56588]
[1740348445245,10.57983627,2804.6,2804.2,0.1522604]
[1740348445448,1.16191065,2804.5,2804.2,0.1522604]
[1740348445651,0.8067,2804.4,2804.2,0.1522604]
[1740348446369,0.8067,2804.4,2804.2,3.7183104]
[1740348449371,0.8067,2804.4,2804.3,3.56595]
[1740348451188,0.8067,2804.4,2804.2,0.1522604]
[1740348451390,0.8067,2804.4,2804.2,3.7183204]
[1740348456149,0.8067,2804.4,2804.2,3.7182604]
[1740348457589,0.8067,2804.4,2804.2,0.1522604]
[1740348458096,1.94535363,2804.4,2804.2,0.1522604]
[1740348458604,7.19535363,2804.4,2804.2,0.1522604]
[1740348458902,0.8051,2804.3,2804.2,0.1522604]
[1740348462008,4.37105,2804.3,2804.2,0.1522604]
[1740348462211,9.89239482,2804.3,2804.2,0.1522604]
[1740348462505,11.51237491,2804.3,2804.2,0.1522604]
[1740348467820,11.51287491,2804.3,2804.2,0.1522604]
[1740348472512,1.35104242,2803.6,2803.4,3.56703]
[1740348472681,6.60104242,2803.6,2803.3,4.37781]
[1740348473283,6.60104242,2803.6,2803.3,0.8106]
[1740348473688,6.60104242,2803.6,2803.3,4.37781]
[1740348474316,7.71845266,2803.6,2803.3,3.56721]
[1740348474815,0.70676503,2803.5,2803.3,3.56721]
[1740348477851,0.70676503,2803.5,2803.2,3.56729]
[1740348478225,0.70676503,2803.5,2803.1,3.56738]
[1740348479668,0.70676503,2803.5,2803.1,7.13477]
[1740348480537,0.70676503,2803.5,2803.1,3.56738]
[1740348481049,5.8548818,2803.5,2803.0,0.7504]
[1740348481252,9.4219218,2803.5,2803.0,4.31799]
[1740348481454,4.91840242,2803.2,2802.8,4.39509]
[1740348481620,5.25,2803.2,2802.9,3.56773]
[1740348482557,5.25,2803.2,2802.9,3.56772]
[1740348484129,0.7064658,2803.0,2802.8,0.8273]
[1740348484332,2.05750822,2803.0,2802.7,3.56796]
[1740348484553,2.05750822,2803.0,2802.7,7.13588]
[1740348485353,0.7064658,2803.0,2802.7,3.56792]
[1740348485654,0.7064658,2803.0,2802.7,7.13584]
[1740348486079,0.7064658,2803.0,2802.7,3.56792]
[1740348486257,0.7064658,2803.0,2802.4,4.39565]
[1740348486258,0.787,2802.9,2802.4,4.39565]
[1740348486454,1.039,2802.9,2802.4,4.39565]
[1740348486660,1.039,2802.9,2802.5,3.56818]
[1740348486970,1.039,2802.9,2802.5,3.56824]
[1740348487166,1.039,2802.9,2802.5,3.56818]
[1740348487366,1.039,2802.9,2802.6,3.56809]
[1740348488192,0.78612963,2802.8,2802.6,3.56809]
[1740348488586,0.78612963,2802.8,2802.4,4.39565]
[1740348488743,0.78612963,2802.8,2802.4,7.96391]
[1740348489145,0.78612963,2802.8,2802.4,4.39556]
[1740348489451,0.7602,2802.5,2802.2,3.56855]
[1740348489753,4.32844,2802.5,2802.1,3.56875]
[1740348489958,0.7602,2802.5,2802.1,3.56875]
[1740348490776,0.56793624,2802.4,2802.1,3.56875]
[1740348492610,1.35104242,2802.2,2801.7,4.34424]
[1740348492818,0.7602,2802.0,2801.5,7.13887]
[1740348493000,0.7602,2802.0,2801.5,7.13886]
[1740348493171,0.7602,2802.0,2801.5,3.56942]
[1740348493377,0.7602,2802.0,2801.4,4.34458]
[1740348493378,3.56901,2801.9,2801.4,4.34458]
[1740348493573,3.56901,2801.9,2801.4,0.775]
[1740348493876,3.56901,2801.9,2801.5,3.5695]
[1740348494376,6.27341266,2802.0,2801.5,3.5695]
[1740348495087,3.56901,2801.9,2801.4,3.56963]
[1740348495275,1.35104242,2801.6,2801.3,0.1522604]
[1740348495479,0.7556,2801.5,2801.3,0.1522604]
[1740348496300,4.32512,2801.5,2801.3,0.1522604]
[1740348498229,3.56964,2801.4,2801.3,0.1522604]
[1740348498442,4.32524,2801.4,2801.3,0.1522604]
[1740348498729,1.545076,2801.4,2801.3,0.1522604]
[1740348498904,5.114716,2801.4,2801.3,0.1522604]
[1740348499276,1.545076,2801.4,2801.3,0.1522604]
[1740348499819,1.46824663,2801.7,2801.6,3.56938]
[1740348500127,0.71264663,2801.7,2801.6,3.56938]
[1740348500895,5.25,2802.2,2801.8,3.56913]
[1740348501206,5.25,2802.5,2802.3,3.56841]
[1740348501631,5.25,2802.5,2802.1,3.56873]
[1740348502127,8.81827,2802.5,2802.1,3.56873]
[1740348502332,5.25,2802.5,2802.1,3.56873]
[1740348502624,1.67770455,2802.4,2802.1,3.56873]
[1740348503631,1.67770455,2802.4,2802.0,3.56887]
[1740348503926,5.24607455,2802.4,2801.9,3.56893]
[1740348505913,5.24607455,2802.4,2802.0,3.56878]
[1740348505914,1.67770455,2802.4,2802.0,3.56878]
[1740348506121,0.72033155,2802.4,2802.1,3.56864]
[1740348506918,0.72033155,2802.4,2802.2,0.7695]
[1740348507149,0.72033155,2802.4,2801.8,4.33854]
[1740348507355,1.49013155,2802.4,2802.0,3.56881]
[1740348508554,0.72033155,2802.4,2802.2,3.56861]
[1740348509056,0.72033155,2802.4,2802.2,3.56855]
[1740348509558,0.72033155,2802.4,2802.1,3.56869]
[1740348512642,1.1247021,2802.4,2802.1,3.56869]
[1740348516055,1.1247021,2802.4,2802.0,3.56886]
[1740348517973,1.1247021,2802.4,2801.9,3.569]
[1740348518163,0.72033155,2802.4,2802.1,3.56868]
[1740348523124,4.28881155,2802.4,2801.9,3.569]
[1740348523312,0.72033155,2802.4,2802.0,3.5688]
[1740348523828,4.28870155,2802.4,2802.0,3.5688]
[1740348526229,5.47388254,2802.4,2802.0,3.5688]
[1740348528428,5.47388254,2802.4,2801.9,7.13792]
[1740348529334,5.47388254,2802.4,2801.9,3.56892]
[1740348530218,5.47388254,2802.4,2802.0,3.56879]
[1740348530414,1.90551254,2802.4,2802.1,3.56873]
[1740348530633,1.90551254,2802.4,2802.0,3.56877]
[1740348532743,1.90551254,2802.4,2801.9,3.56892]
[1740348532890,1.90551254,2802.4,2802.1,3.68044365]
[1740348534024,1.90551254,2802.4,2802.1,3.56874]
[1740348537331,5.47389254,2802.4,2802.0,3.56884]
[1740348537632,5.47389254,2802.4,2801.9,3.56892]
[1740348537803,0.7526,2802.2,2801.9,3.56892]
[1740348538401,0.7526,2802.2,2801.9,3.56891]
[1740348546557,0.7526,2802.2,2802.0,3.56882]
[1740348546855,0.7526,2802.2,2802.0,3.68052699]
[1740348547947,0.7526,2802.2,2802.0,3.56882]
[1740348548347,0.7526,2802.2,2801.8,3.5691]
[1740348548549,0.7526,2802.2,2802.0,3.56882]
[1740348550245,0.7526,2802.2,2802.0,3.56879]
[1740348552145,0.7526,2802.2,2802.0,7.13761]
[1740348553459,0.7526,2802.2,2802.0,3.56879]
[1740348553620,0.7526,2802.2,2802.0,3.56881]
[1740348553820,0.7526,2802.2,2802.0,7.13762]
[1740348554823,0.7696,2802.1,2801.5,3.56951]
[1740348555260,3.56893,2802.0,2801.5,3.56951]
[1740348555635,3.56893,2802.0,2801.6,0.11171742]
[1740348557331,3.56893,2802.0,2801.7,0.11171742]
[1740348557532,4.38625113,2802.0,2801.7,0.11171742]
[1740348558733,4.38625113,2802.0,2801.5,3.56951]
[1740348559664,0.73109177,2801.8,2801.5,3.56951]
[1740348560330,0.73109177,2801.8,2801.6,0.1117181]
[1740348561469,0.7696,2801.7,2801.3,5.07507982]
[1740348562877,0.7696,2801.7,2801.4,0.11172733]
[1740348563967,0.7696,2801.7,2801.3,5.07507982]
[1740348564670,0.7696,2801.7,2801.3,8.64478982]
[1740348565041,0.7696,2801.7,2801.3,5.07507982]
[1740348566175,0.7696,2801.7,2801.4,3.56957]
[1740348567340,0.73109177,2801.8,2801.4,3.56957]
[1740348571376,0.73109177,2801.8,2801.3,1.50540982]
[1740348571377,5.08833306,2801.8,2801.3,5.07509982]
[1740348573175,5.08833306,2801.8,2801.4,0.11172682]
[1740348574174,5.08833306,2801.8,2801.3,5.07509982]
[1740348574368,4.35439,2801.7,2801.3,0.1522604]
[1740348574610,3.56948,2801.6,2801.3,0.1522604]
[1740348574775,0.7851,2801.4,2801.3,0.1522604]
[1740348575897,4.35474,2801.4,2801.3,0.1522604]
[1740348577962,9.60474,2801.4,2801.3,0.1522604]
[1740348582210,9.60474,2801.4,2801.3,1e-08]
[1740348582501,10.922167,2801.4,2801.3,1e-08]
[1740348592331,3.5705,2800.8,2800.5,0.8032]
[1740348592534,3.5705,2800.8,2800.3,3.57104]
[1740348592535,5.25,2800.8,2800.3,4.35092]
[1740348592684,8.82043,2800.8,2800.3,4.35092]
[1740348592880,0.7758,2800.7,2800.3,4.35092]
[1740348593235,0.7758,2800.7,2800.4,0.11176248]
[1740348593534,8.82043,2800.8,2800.4,0.11176248]
[1740348594028,8.82043,2800.8,2800.3,4.35092]
[1740348594334,3.57056,2800.7,2800.3,0.7799]
[1740348595903,3.57074,2800.6,2800.3,0.7799]
[1740348596234,0.70042166,2800.5,2800.3,0.7799]
[1740348599238,0.27252925,2800.4,2800.3,0.7799]
[1740348600926,0.27252925,2800.4,2800.3,0.7299]
[1740348601683,3.5699,2801.2,2800.4,0.55]
[1740348601922,3.5699,2801.2,2800.6,0.55]
[1740348602126,3.57009,2801.1,2800.6,4.12057]
[1740348602298,3.57009,2801.1,2800.7,3.57053]
[1740348603102,3.56993,2801.2,2800.7,3.57053]
[1740348603447,0.70092237,2800.9,2800.7,3.57045]
[1740348603794,0.70092237,2800.9,2800.8,0.7783]
[1740348607442,3.57013,2801.1,2800.8,0.7783]
[1740348607648,3.56993,2801.2,2800.8,0.7783]
[1740348607854,0.70106543,2801.0,2800.8,4.3487]
[1740348608651,0.70106543,2801.0,2800.8,0.7783]
[1740348609336,0.8296,2802.0,2801.8,3.56913]
[1740348609534,5.25,2802.1,2801.8,3.56913]
[1740348609739,5.25,2802.1,2801.8,3.56906]
[1740348611020,0.7158899,2802.0,2801.8,7.13812]
[1740348611220,0.7158899,2802.0,2801.9,3.569]
[1740348611438,0.7158899,2802.0,2801.9,4.3814]
[1740348612165,5.25,2802.4,2802.0,3.56883]
[1740348612331,7.037545,2802.4,2802.0,3.56883]
[1740348612737,7.037545,2802.4,2801.9,4.3814]
[1740348612914,7.037545,2802.4,2802.0,3.56878]
[1740348613241,7.037545,2802.4,2801.9,4.3814]
[1740348613443,7.037545,2802.4,2801.9,4.38133]
[1740348613611,7.037545,2802.4,2802.0,3.56886]
[1740348614343,0.71510313,2802.1,2802.0,3.56886]
[1740348616050,5.25,2802.4,2802.3,3.56849]
[1740348616254,0.74028959,2803.2,2802.9,3.56766]
[1740348616255,6.0419,2803.2,2802.9,3.56766]
[1740348616550,3.56817,2802.6,2802.0,0.7657]
[1740348616852,0.356817,2802.5,2802.1,3.56869]
[1740348617028,3.56817,2802.6,2802.2,0.55]
[1740348617624,5.25,2802.7,2802.5,0.7581]
[1740348618658,5.25,2802.7,2802.0,1.3106]
[1740348618659,3.5684,2802.4,2802.0,1.3106]
[1740348618860,4.37851,2802.6,2802.1,3.56868]
[1740348619017,3.56824,2802.5,2802.1,3.56868]
[1740348619214,5.25,2802.7,2802.1,0.771]
[1740348619451,5.25,2802.7,2802.6,4.88911]
[1740348619631,0.70530425,2803.0,2802.9,4.11773]
[1740348621553,5.25,2803.3,2803.1,3.56742]
[1740348621749,0.69843992,2803.2,2803.1,3.56742]
[1740348622452,6.0436,2803.8,2803.0,0.7956]
[1740348622632,0.74300142,2803.7,2803.4,3.56701]
[1740348622950,0.71579157,2803.5,2803.4,3.56701]
[1740348623153,0.71579157,2803.5,2803.4,4.90301]
[1740348623364,5.25,2804.0,2803.8,3.56655]
[1740348623568,3.56652,2803.9,2803.4,0.786]
[1740348623862,4.38654,2803.6,2803.1,3.5674]
[1740348624241,4.38654,2803.6,2803.2,0.55]
[1740348624839,0.8197,2803.6,2803.2,0.55]
[1740348625241,0.254,2803.8,2803.5,4.32966]
[1740348625462,1.37332872,2803.8,2803.5,0.7627]
[1740348626380,1.37332872,2803.8,2803.4,3.56708]
[1740348626587,4.93993872,2803.8,2803.3,4.31726]
[1740348629278,1.37332872,2803.8,2803.3,0.7501]
[1740348629492,1.37332872,2803.8,2803.4,3.56699]
[1740348629657,0.254,2803.8,2803.5,0.55]
[1740348630648,0.254,2803.8,2803.4,0.55]
[1740348630848,0.254,2803.8,2803.4,4.11702]
[1740348634070,3.82067,2803.8,2803.4,0.55]
[1740348635343,0.8111,2803.7,2802.8,0.7712]
[1740348635541,3.56722,2803.3,2802.9,3.56772]
[1740348635972,3.56699,2803.5,2802.9,3.56772]
[1740348636183,3.5671,2803.4,2802.9,3.56772]
[1740348636340,3.5671,2803.4,2803.0,3.5676]
[1740348636544,3.5671,2803.4,2802.9,4.11764]
[1740348636966,3.5671,2803.4,2802.9,7.68531]
[1740348637573,3.5671,2803.4,2802.9,4.11764]
[1740348637755,3.5671,2803.4,2803.0,3.56759]
[1740348638293,0.8314,2803.3,2803.0,3.56759]
[1740348638961,3.5671,2803.4,2803.0,3.56759]
[1740348639157,1.55071547,2803.5,2802.9,0.55]
[1740348639158,0.71931547,2803.5,2803.3,0.55]
[1740348639362,0.71931547,2803.5,2802.9,3.34110215]
[1740348639363,5.25,2803.6,2803.5,4.11696]
[1740348639573,0.8314,2803.9,2803.6,3.56683]
[1740348640483,4.39787,2803.9,2803.5,4.11696]
[1740348641387,0.8314,2803.9,2803.5,4.11696]
[1740348642086,0.69891588,2803.8,2803.5,4.11696]
[1740348642386,0.69891588,2803.8,2803.5,4.11689]
[1740348643665,0.69891588,2803.8,2803.5,7.68377]
[1740348644379,0.69891588,2803.8,2803.6,3.56682]
[1740348645377,0.69891588,2803.8,2803.5,0.55]
[1740348645776,0.69891588,2803.8,2803.6,3.56683]
[1740348647690,6.0494,2804.2,2803.7,0.55]